fUST/lending_fUST_20251215
["ID","MTS","AMOUNT","RATE_DAILY","PERIOD"]
[398493091,1765744238384,-150.0,0.00014919,2]
[398493092,1765744238394,-150.0,0.00014919,2]
[398493093,1765744238403,-150.0,0.00014919,2]
[398493094,1765744238412,-500.0,0.00014919,2]
[398493095,1765744238421,-500.0,0.00014919,2]
[398493096,1765744238430,-500.0,0.00014919,2]
[398493097,1765744238439,-500.0,0.00014919,2]
[398493098,1765744238448,-150.0,0.00014919,2]
[398493099,1765744238458,-150.0,0.00014919,2]
[398493100,1765744238467,-150.0,0.00014919,2]
[398493101,1765744238476,-151.0,0.00015,2]
[398493102,1765744238486,-151.0,0.00015,2]
[398493103,1765744238495,-500.0,0.00015,30]
[398493104,1765744238504,-500.0,0.00015,30]
[398493105,1765744238513,-1000.0,0.00015002,2]
[398493106,1765744238522,-1000.0,0.00015002,2]
[398493107,1765744238531,-1000.0,0.00015002,2]
[398493108,1765744238541,-1000.0,0.00015002,2]
[398493109,1765744238550,-1000.0,0.00015002,2]
[398493110,1765744238559,-1000.0,0.00015002,2]
[398493111,1765744238568,-1000.0,0.00015002,2]
[398493112,1765744238578,-1000.0,0.00015002,2]
[398493113,1765744238587,-1000.0,0.00015002,2]
[398493114,1765744238595,-1000.0,0.00015002,2]
[398493115,1765744238604,-1000.0,0.00015002,2]
[398493116,1765744238613,-1000.0,0.00015002,2]
[398493117,1765744238623,-1000.0,0.00015002,2]
[398493118,1765744238632,-1000.0,0.00015002,2]
[398493119,1765744238641,-1000.0,0.00015002,2]
[398493120,1765744238650,-1000.0,0.00015002,2]
[398493121,1765744238660,-1000.0,0.00015002,2]
[398493122,1765744238669,-1000.0,0.00015002,2]
[398493123,1765744238679,-1000.0,0.00015002,2]
[398493124,1765744238688,-1000.0,0.00015002,2]
[398493125,1765744238698,-477.24110637,0.00015002,2]
[398493126,1765744238707,-244.17825768,0.00015002,2]
[398493127,1765744238716,-250.0,0.00015002,2]
[398493128,1765744238726,-250.0,0.00015002,2]
[398493129,1765744238736,-574.12855637,0.00015002,2]
[398493130,1765744238745,-250.0,0.00015002,2]
[398493131,1765744238754,-250.0,0.00015002,2]
[398493132,1765744238763,-250.0,0.00015002,2]
[398493133,1765744238773,-250.0,0.00015002,2]
[398493134,1765744238782,-250.0,0.00015002,2]
[398493135,1765744238791,-250.0,0.00015002,2]
[398493136,1765744238800,-250.0,0.00015002,2]
[398493137,1765744238810,-500.0,0.00015002,2]
[398493138,1765744238819,-250.0,0.00015002,2]
[398493139,1765744238828,-250.0,0.00015002,2]
[398493140,1765744238837,-500.0,0.00015002,2]
[398493141,1765744238848,-250.0,0.00015002,2]
[398493142,1765744238860,-250.0,0.00015002,2]
[398493143,1765744238868,-500.0,0.00015002,2]
[398493144,1765744238878,-250.0,0.00015002,2]
[398493145,1765744238888,-255.64955147,0.00015002,2]
[398493146,1765744238897,-500.0,0.00015002,2]
[398493147,1765744238907,-250.0,0.00015002,2]
[398493148,1765744238916,-500.0,0.00015002,2]
[398493149,1765744238925,-250.0,0.00015002,2]
[398493150,1765744238934,-500.0,0.00015002,2]
[398493151,1765744238944,-250.0,0.00015002,2]
[398493152,1765744238953,-250.0,0.00015002,2]
[398493153,1765744238963,-500.0,0.00015002,2]
[398493154,1765744238972,-250.0,0.00015002,2]
[398493155,1765744238981,-250.0,0.00015002,2]
[398493156,1765744238991,-500.0,0.00015002,2]
[398493157,1765744239000,-250.0,0.00015002,2]
[398493158,1765744239010,-250.0,0.00015002,2]
[398493159,1765744239019,-500.0,0.00015002,2]
[398493160,1765744239028,-250.0,0.00015002,2]
[398493161,1765744239037,-500.0,0.00015002,2]
[398493162,1765744239047,-250.0,0.00015002,2]
[398493163,1765744239056,-500.0,0.00015002,2]
[398493164,1765744239066,-250.0,0.00015002,2]
[398493165,1765744239075,-250.0,0.00015002,2]
[398493166,1765744239085,-154.0,0.00015011,2]
[398493167,1765744239094,-26009.2175279,0.00015015,2]
[398493168,1765744239105,-184.4526,0.00015015,2]
[398493169,1765744239114,-6516.0678457,0.00015016,2]
[398493170,1765744239123,-2758.0547223,0.00015019,2]
[398493171,1765744239133,-500.0,0.00015019,2]
[398493172,1765744239143,-500.0,0.00015019,2]
[398493173,1765744239152,-500.0,0.00015019,2]
[398493174,1765744239161,-500.0,0.00015019,2]
[398493175,1765744239170,-500.0,0.00015019,2]
[398493176,1765744239179,-500.0,0.00015019,2]
[398493177,1765744239188,-500.0,0.00015019,2]
[398493178,1765744239197,-500.0,0.00015019,2]
[398493179,1765744239207,-543.27696683,0.00015019,2]
[398493180,1765744239215,-560.0,0.00015019,2]
[398493181,1765744239225,-1006.07,0.00015019,2]
[398493182,1765744239234,-1006.07,0.00015019,2]
[398493183,1765744239243,-1006.07,0.00015019,2]
[398493184,1765744239252,-1006.07,0.00015019,2]
[398493185,1765744239262,-1006.07,0.00015019,2]
[398493186,1765744239271,-1006.07,0.00015019,2]
[398493187,1765744239281,-1006.07,0.00015019,2]
[398493188,1765744239290,-500.0,0.00015019,2]
[398493189,1765744239299,-500.0,0.00015019,2]
[398493190,1765744239308,-500.0,0.00015019,2]
[398493191,1765744239318,-500.0,0.00015019,2]
[398493192,1765744239327,-500.0,0.00015019,2]
[398493193,1765744239336,-500.0,0.00015019,2]
[398493194,1765744239345,-500.0,0.00015019,2]
[398493195,1765744239355,-198.95609423,0.0001502,2]
[398493196,1765744239364,-358.12096961,0.0001502,2]
[398493197,1765744239374,-636.65950152,0.0001502,2]
[398493198,1765744239383,-279.78727986,0.0001502,2]
[398493199,1765744239392,-449.1107392,0.0001502,2]
[398493200,1765744239401,-808.39933056,0.0001502,2]
[398493201,1765744239410,-1437.15436545,0.0001502,2]
[398493202,1765744239419,-2245.55369601,0.0001502,2]
[398493203,1765744239428,-3233.59732226,0.0001502,2]
[398493204,1765744239437,-335.85191983,0.0001502,2]
[398493205,1765744239447,-1216.82418967,0.00015054,7]
[398493206,1765744239456,-500.0,0.00015056,2]
[398493207,1765744239466,-501.23836798,0.00015056,2]
[398493208,1765744239475,-150.0,0.00015056,2]
[398493209,1765744239485,-150.0,0.00015056,2]
[398493210,1765744239494,-150.0,0.00015056,2]
[398493211,1765744239503,-150.0,0.00015056,2]
[398493212,1765744239513,-605.89295001,0.00015056,2]
[398493213,1765744239522,-150.0,0.00015056,2]
[398493214,1765744239531,-500.0,0.00015056,2]
[398493215,1765744239541,-500.0,0.00015056,2]
[398493216,1765744239551,-150.0,0.00015056,2]
[398493218,1765744239560,-151.85150379,0.00015056,2]
[398493219,1765744239569,-501.49499767,0.00015056,2]
[398493221,1765744239578,-150.0,0.00015056,2]
[398493222,1765744239587,-500.0,0.00015056,2]
[398493223,1765744239597,-500.0,0.00015056,2]
[398493224,1765744239606,-201.11546971,0.00015056,2]
[398493225,1765744239616,-152.0,0.00015056,2]
[398493226,1765744239625,-150.0,0.00015056,2]
[398493227,1765744239634,-500.0,0.00015056,2]
[398493228,1765744239643,-500.0,0.00015056,2]
[398493229,1765744239653,-500.0,0.00015056,2]
[398493230,1765744239662,-500.0,0.00015056,2]
[398493231,1765744239671,-500.0,0.00015056,2]
[398493233,1765744239681,-201.56120465,0.00015056,2]
[398493235,1765744239690,-150.0,0.00015056,2]
[398493237,1765744239700,-800.0,0.00015068,2]
[398493239,1765744239709,-1006.07,0.0001511,2]
[398493241,1765744239718,-502.85819518,0.0001511,2]
[398493243,1765744239728,-500.0,0.00015111,2]
[398493245,1765744239737,-300.0,0.00015112,2]
[398493246,1765744239747,-300.0,0.00015112,2]
[398493248,1765744239756,-300.0,0.00015112,2]
[398493250,1765744239765,-300.0,0.00015112,2]
[398493252,1765744239775,-300.0,0.00015112,2]
[398493254,1765744239784,-300.0,0.00015112,2]
[398493256,1765744239794,-300.0,0.00015112,2]
[398493258,1765744239803,-300.0,0.00015112,2]
[398493260,1765744239812,-300.0,0.00015112,2]
[398493262,1765744239822,-300.0,0.00015112,2]
[398493264,1765744239831,-300.0,0.00015112,2]
[398493266,1765744239840,-300.0,0.00015112,2]
[398493268,1765744239858,-300.0,0.00015112,2]
[398493270,1765744239868,-300.0,0.00015112,2]
[398493272,1765744239877,-300.0,0.00015112,2]
[398493274,1765744239886,-600.0,0.00015112,2]
[398493276,1765744239898,-1006.07,0.00015118,2]
[398493277,1765744239907,-1006.07,0.00015118,2]
[398493279,1765744239916,-500.0,0.00015119,2]
[398493281,1765744239925,-338.13,0.00015119,2]
[398493282,1765744239937,-5499.9006339,0.00015123,2]
[398493283,1765744239946,-383.44693476,0.00015138,2]
[398493285,1765744239956,-171.57713362,0.00015171,2]
[398493287,1765744239965,-271.86742995,0.00015193,2]
[398493288,1765744239974,-150.0,0.00015193,2]
[398493289,1765744239983,-153.51279631,0.00015193,2]
[398493291,1765744239993,-150.0,0.00015193,2]
[398493292,1765744240002,-150.0,0.00015193,2]
[398493294,1765744240012,-150.0,0.00015193,2]
[398493296,1765744240023,-500.0,0.00015193,2]
[398493298,1765744240033,-256.93260328,0.00015193,2]
[398493300,1765744240042,-206.46636722,0.00015193,2]
[398493302,1765744240051,-150.0,0.00015193,2]
[398493303,1765744240060,-460.62231059,0.00015193,2]
[398493305,1765744240070,-529.69504851,0.00015193,2]
[398493306,1765744240080,-150.0,0.00015193,2]
[398493307,1765744240088,-156.06333995,0.00015193,2]
[398493308,1765744240098,-500.0,0.00015193,2]
[398493309,1765744240107,-513.22955624,0.00015193,2]
[398493310,1765744240117,-350.0,0.00015193,2]
[398493311,1765744240127,-251.09076016,0.00015193,2]
[398493312,1765744240136,-202.82994718,0.00015193,2]
[398493313,1765744240145,-480.18637333,0.00015193,2]
[398493314,1765744240154,-864.335472,0.00015193,2]
[398493315,1765744240164,-1536.59639466,0.00015193,2]
[398493316,1765744240174,-2400.93186666,0.00015193,2]
[398493317,1765744240183,-369.61115314,0.00015193,2]
[398493318,1765744240192,-657.08649448,0.00015193,2]
[398493319,1765744240202,-423.21040418,0.00015193,2]
[398493320,1765744240211,-761.77872752,0.00015193,2]
[398493321,1765744240221,-1354.27329337,0.00015193,2]
[398493322,1765744240231,-1322.65,0.00015207,2]
[398493323,1765744240240,-1006.07,0.00015219,2]
[398493324,1765744240250,-475.0,0.00015219,2]
[398493325,1765744240261,-475.0,0.00015219,2]
[398493326,1765744240271,-475.0,0.00015219,2]
[398493327,1765744240281,-475.0,0.00015219,2]
[398493328,1765744240291,-475.0,0.00015219,2]
[398493329,1765744240302,-475.0,0.00015219,2]
[398493330,1765744240312,-475.0,0.00015219,2]
[398493331,1765744240323,-475.0,0.00015219,2]
[398493332,1765744240333,-475.0,0.00015219,2]
[398493333,1765744240342,-475.0,0.00015219,2]
[398493334,1765744240351,-475.0,0.00015219,2]
[398493335,1765744240361,-475.0,0.00015219,2]
[398493336,1765744240372,-475.0,0.00015219,2]
[398493337,1765744240382,-475.0,0.00015219,2]
[398493338,1765744240393,-475.0,0.00015219,2]
[398493339,1765744240404,-500.0,0.0001522,2]
[398493340,1765744240416,-500.0,0.0001522,2]
[398493341,1765744240427,-500.0,0.0001522,2]
[398493342,1765744240437,-500.0,0.0001522,2]
[398493343,1765744240446,-500.0,0.0001522,2]
[398493344,1765744240455,-500.0,0.0001522,2]
[398493345,1765744240465,-500.0,0.0001522,2]
[398493346,1765744240476,-356.84778758,0.0001522,2]
[398493347,1765744240486,-500.0,0.0001522,2]
[398493348,1765744240498,-500.0,0.0001522,2]
[398493349,1765744240507,-500.0,0.0001522,2]
[398493350,1765744240517,-500.0,0.0001522,2]
[398493351,1765744240527,-500.0,0.0001522,2]
[398493352,1765744240538,-500.0,0.0001522,2]
[398493353,1765744240549,-500.0,0.0001522,2]
[398493354,1765744240558,-500.0,0.0001522,2]
[398493355,1765744240568,-500.0,0.0001522,2]
[398493356,1765744240578,-376.0,0.0001522,2]
[398493357,1765744240588,-151.0,0.000153,2]
[398493358,1765744240600,-300.0,0.00015316,2]
[398493359,1765744240609,-1326.7144,0.00015318,2]
[398493360,1765744240619,-1326.7144,0.00015318,2]
[398493361,1765744240629,-1326.7144,0.00015318,2]
[398493362,1765744240639,-1326.7144,0.00015318,2]
[398493363,1765744240648,-151.0,0.00015318,2]
[398493364,1765744240657,-151.0,0.00015318,2]
[398493365,1765744240666,-196.94,0.00015319,2]
[398493366,1765744240675,-100000.0,0.0001532,2]
[398493367,1765744240684,-151.0,0.0001532,2]
[398493368,1765744240693,-191.029062,0.0001532,2]
[398493369,1765744240703,-150.0,0.0001533,2]
[398493370,1765744240712,-156.66452387,0.0001533,2]
[398493371,1765744240721,-150.0,0.0001533,2]
[398493372,1765744240731,-202.02713431,0.0001533,2]
[398493373,1765744240740,-500.0,0.0001533,2]
[398493374,1765744240750,-150.0,0.0001533,2]
[398493375,1765744240760,-150.0,0.0001533,2]
[398493376,1765744240769,-500.0,0.0001533,2]
[398493377,1765744240778,-2000.0,0.00015342,2]
[398493378,1765744240787,-723.95119122,0.00015342,2]
[398493379,1765744240796,-2000.0,0.00015342,2]
[398493380,1765744240805,-1001.0,0.00015356,2]
[398493381,1765744240814,-151.0,0.000154,2]
[398493382,1765744240823,-2500.0,0.00015464,2]
[398493383,1765744240832,-778.04545937,0.00015464,2]
[398493384,1765744240842,-2527.70513452,0.00015464,2]
[398493385,1765744240852,-2500.0,0.00015464,2]
[398493386,1765744240861,-202.714738,0.00015467,2]
[398493387,1765744240874,-157.18649285,0.00015467,2]
[398493388,1765744240883,-500.0,0.00015467,2]
[398493389,1765744240892,-150.0,0.00015467,2]
[398493390,1765744240902,-150.0,0.00015467,2]
[398493391,1765744240911,-500.0,0.00015467,2]
[398493392,1765744240920,-284.55196428,0.00015473,7]
[398493393,1765744240930,-1887.82878153,0.00015473,7]
[398493394,1765744240938,-1006.07,0.0001548,2]
[398493395,1765744240948,-595.37131296,0.0001555,2]
[398493396,1765744240957,-267.33626441,0.0001555,2]
[398493397,1765744240966,-151.0,0.000156,2]
[398493398,1765744240976,-152.82922081,0.00015604,2]
[398493399,1765744240985,-224.41774473,0.00015604,2]
[398493400,1765744240994,-250.0,0.00015604,2]
[398493401,1765744241004,-500.0,0.00015604,2]
[398493402,1765744241013,-151.0,0.000157,2]
[398493403,1765744241022,-1006.07,0.00015733,2]
[398493404,1765744241031,-12968.51891467,0.00015734,2]
[398493405,1765744241040,-1000.0,0.00015737,2]
[398493406,1765744241049,-581.79986078,0.00015741,2]
[398493407,1765744241059,-475.0,0.0001589,2]
[398493408,1765744241068,-475.0,0.0001589,2]
[398493409,1765744241078,-475.0,0.0001589,2]
[398493410,1765744241088,-2298.5725728,0.0001589,2]
[398493411,1765744241097,-415.0,0.00015898,2]
[398493412,1765744241107,-151.0,0.000159,2]
[398493413,1765744241117,-1001.0,0.00015904,2]
[398493414,1765744241126,-588.91496994,0.00015928,7]
[398493415,1765744241136,-160.0,0.00015929,2]
[398493416,1765744241146,-263.782391,0.00016,2]
[398493417,1765744241155,-151.0,0.00016,2]
[398493418,1765744241165,-370.0,0.00016,2]
[398493419,1765744241174,-500.0,0.00016012,2]
[398493420,1765744241183,-150.0,0.0001605,2]
[398493421,1765744241193,-150.115,0.0001605,2]
[398493422,1765744241202,-281.503,0.0001605,2]
[398493423,1765744241211,-1227.1937092,0.00016076,2]
[398493424,1765744241221,-1326.7144,0.00016076,2]
[398493425,1765744241230,-1326.7144,0.00016076,2]
[398493426,1765744241239,-1326.7144,0.00016076,2]
[398493427,1765744241248,-1326.7144,0.00016076,2]
[398493428,1765744241258,-422.06317233,0.00016083,2]
[398493429,1765744241267,-617.40005154,0.00016098,2]
[398493430,1765744241277,-151.0,0.000162,2]
[398493431,1765744241287,-1006.07,0.00016231,2]
[398493432,1765744241297,-800.0,0.00016232,2]
[398493433,1765744241306,-800.0,0.00016232,2]
[398493434,1765744241316,-800.0,0.00016232,2]
[398493435,1765744241326,-800.0,0.00016232,2]
[398493436,1765744241337,-273.8239288,0.00016288,2]
[398493437,1765744241346,-151.0,0.000163,2]
[398493438,1765744241357,-5803.4408723,0.00016303,2]
[398493439,1765744241367,-6783.83013357,0.00016333,2]
[398493440,1765744241376,-134454.50029319,0.00016431,2]
[398493441,1765744241385,-1006.07,0.00016432,2]
[398493442,1765744241395,-1006.07,0.00016432,2]
[398493443,1765744241404,-1006.07,0.00016432,2]
[398493444,1765744241414,-1006.07,0.00016432,2]
[398493445,1765744241423,-1006.07,0.00016432,2]
[398493446,1765744241432,-1006.07,0.00016432,2]
[398493447,1765744241640,-1006.07,0.00016432,2]
[398493448,1765744241651,-1006.07,0.00016432,2]
[398493449,1765744241660,-1006.07,0.00016432,2]
[398493450,1765744241670,-1006.25957507,0.00016432,2]
[398493451,1765744241680,-151.0,0.00016432,2]
[398493452,1765744241689,-1326.7144,0.00016433,2]
[398493453,1765744241699,-1326.7144,0.00016433,2]
[398493454,1765744241708,-1326.7144,0.00016433,2]
[398493455,1765744241718,-1326.7144,0.00016433,2]
[398493456,1765744241727,-1326.7144,0.00016433,2]
[398493457,1765744241736,-1326.7144,0.00016433,2]
[398493458,1765744241745,-1326.7144,0.00016433,2]
[398493459,1765744241754,-1326.7144,0.00016433,2]
[398493460,1765744241763,-151.0,0.00016433,2]
[398493461,1765744241772,-151.0,0.00016433,2]
[398493462,1765744241781,-82444.47700998,0.00016433,2]
[398493463,1765744242168,-202775.58292574,0.00016433,2]
[398493493,1765744245991,-500.0,0.00014246,2]
[398493494,1765744246003,-1000.0,0.00015002,2]
[398493495,1765744246014,-1000.0,0.00015002,2]
[398493496,1765744246024,-1000.0,0.00015002,2]
[398493497,1765744246034,-872.85941681,0.00015002,2]
[398493498,1765744246045,-578.19,0.0001501,2]
[398493499,1765744246055,-578.19,0.0001501,2]
[398493500,1765744246065,-578.19,0.00015018,2]
[398493501,1765744246075,-578.19,0.00015019,2]
[398493502,1765744246084,-578.19,0.00015019,2]
[398493503,1765744246095,-578.19,0.00015019,2]
[398493504,1765744246106,-578.19,0.00015019,2]
[398493505,1765744246117,-578.19,0.00015019,2]
[398493506,1765744246127,-578.19,0.00015019,2]
[398493507,1765744246138,-578.19,0.00015055,2]
[398493508,1765744246147,-578.19,0.00015118,2]
[398493509,1765744246157,-578.19,0.00015122,2]
[398493510,1765744246167,-168.62567876,0.00015238,2]
[398493511,1765744247021,-409.56432124,0.00015238,2]
[398493512,1765744247030,-578.19,0.00015441,2]
[398493513,1765744247040,-578.19,0.00015478,2]
[398493514,1765744247049,-578.19,0.00015733,2]
[398493515,1765744247058,-578.19,0.00016012,2]
[398493516,1765744247068,-578.19,0.00016432,2]
[398493517,1765744247077,-578.19,0.00016432,2]
[398493518,1765744247086,-578.19,0.00016432,2]
[398493519,1765744247097,-578.19,0.00016432,2]
[398493520,1765744247107,-578.31,0.00016432,2]
[398493521,1765744247116,-35793.86347876,0.00016433,2]
[398493522,1765744247128,-441.315,0.00016433,2]
[398493523,1765744251879,230.86361841,0.0001313,2]
[398493524,1765744263472,152.44,0.00012,2]
[398493525,1765744267058,500.0,0.00013273,2]
[398493526,1765744267373,500.0,0.00013273,2]
[398493527,1765744277177,500.0,0.00013273,2]
[398493528,1765744283518,545.56,0.00013273,2]
[398493529,1765744308113,259.89,9.746e-05,2]
[398493530,1765744308522,519.78,0.00010632,2]
[398493531,1765744308925,779.67,0.00011518,2]
[398493532,1765744309324,1039.56,0.00012404,2]
[398493533,1765744309907,1299.45,0.0001329,2]
[398493534,1765744326684,500.0,0.00013273,2]
[398493535,1765744330840,9500.01,0.000136,2]
[398493536,1765744330864,215.99,0.000136,2]
[398493537,1765744330979,500.0,0.00013273,2]
[398493538,1765744386605,300.66,9.139e-05,2]
[398493539,1765744387033,601.31,9.969e-05,2]
[398493540,1765744387664,901.97,0.000108,2]
[398493541,1765744387886,1202.62,0.00011631,2]
[398493542,1765744388309,1503.28,0.00012462,2]
[398493543,1765744388699,1803.94,0.00013292,2]
[398493544,1765744397264,500.0,0.00013273,2]
[398493545,1765744398209,500.0,0.00013273,2]
[398493546,1765744399154,500.0,0.00013273,2]
[398493547,1765744402409,205.14043542,0.0001321,2]
[398493548,1765744407087,500.0,0.00013273,2]
[398493549,1765744407296,502.37398164,0.00013273,2]
[398493550,1765744408154,511.67770626,0.00013273,2]
[398493551,1765744408308,500.0,0.00013273,2]
[398493554,1765744442729,152.68,0.00012,2]
[398493555,1765744442920,152.68,0.00013,2]
[398493556,1765744445376,500.0,0.00013273,2]
[398493557,1765744449887,500.0,0.00013273,2]
[398493558,1765744451370,500.0,0.00013273,2]
[398493559,1765744451597,5132.0,0.000134,2]
[398493560,1765744465470,356.38,7.543e-05,2]
[398493561,1765744466204,712.77,8.228e-05,2]
[398493562,1765744466389,1069.15,8.914e-05,2]
[398493563,1765744466723,924.35,9.6e-05,2]
[398493564,1765744466751,501.18,9.6e-05,2]
[398493565,1765744467129,1781.91,0.00010286,2]
[398493566,1765744467526,2138.3,0.00010971,2]
[398493567,1765744467927,2494.68,0.00011657,2]
[398493568,1765744468376,2851.06,0.00012343,2]
[398493569,1765744468790,232.88,0.00013028,2]
[398493570,1765744468815,2974.56,0.00013028,2]
[398493571,1765744502869,153.12,0.00012,2]
[398493572,1765744503094,153.12,0.000122,2]
[398493573,1765744503438,153.12,0.000123,2]
[398493574,1765744503869,153.12,0.000125,2]
[398493575,1765744504155,153.12,0.000127,2]
[398493576,1765744504578,153.12,0.000128,2]
[398493577,1765744505234,153.12,0.00013,2]
[398493578,1765744505347,153.12,0.000132,2]
[398493579,1765744505709,153.12,0.000133,2]
[398493580,1765744507484,500.0,0.00013273,2]
[398493581,1765744507554,500.0,0.00013273,2]
[398493582,1765744520650,500.0,0.00013273,2]
[398493583,1765744523036,417.70035796,0.00013273,2]
[398493584,1765744523523,500.0,0.00013273,2]
[398493585,1765744524192,500.0,0.00013273,2]
[398493586,1765744527535,500.0,0.00013273,2]
[398493587,1765744532782,500.0,0.00013273,2]
[398493588,1765744533091,500.0,0.00013273,2]
[398493589,1765744533124,500.0,0.00013273,2]
[398493590,1765744533220,500.0,0.00013273,2]
[398493591,1765744542212,173.7,7.516e-05,2]
[398493592,1765744542637,55.96964204,8.199e-05,2]
[398493593,1765744542665,291.43035796,8.199e-05,2]
[398493594,1765744543059,521.09,8.882e-05,2]
[398493595,1765744543496,694.79,9.565e-05,2]
[398493596,1765744543978,868.49,0.00010249,2]
[398493597,1765744556960,1042.19,0.00010932,2]
[398493598,1765744557860,1215.88,0.00011615,2]
[398493599,1765744558016,1389.58,0.00012298,2]
[398493600,1765744558416,1563.28,0.00012981,2]
[398493601,1765744565044,153.13,0.00012,2]
[398493602,1765744565296,153.13,0.000127,2]
[398493603,1765744565335,526.14405521,0.00013273,2]
[398493604,1765744565571,153.13,0.000133,2]
[398493605,1765744565874,500.0,0.00013273,2]
[398493606,1765744569538,500.0,0.00013273,2]
[398493607,1765744571755,427.74558683,0.000134,2]
[398493608,1765744571779,3767.25441317,0.000134,2]
[398493609,1765744613022,7329.9278594,0.00013173,2]
[398493610,1765744626204,500.0,0.00013273,2]
[398493611,1765744626251,500.0,0.00013273,2]
[398493612,1765744631494,150.0,7.491e-05,2]
[398493613,1765744631858,189.02,8.172e-05,2]
[398493614,1765744632534,283.53,8.853e-05,2]
[398493615,1765744632744,378.03,9.534e-05,2]
[398493616,1765744633057,472.54,0.00010215,2]
[398493617,1765744633503,196.9621406,0.00010896,2]
[398493618,1765744633531,370.0878594,0.00010896,2]
[398493619,1765744633887,661.56,0.00011577,2]
[398493620,1765744634277,756.07,0.00012258,2]
[398493621,1765744634696,850.58,0.00012939,2]
[398493622,1765744637342,500.0,0.00013273,2]
[398493623,1765744640004,500.0,0.00013273,2]
[398493624,1765744641110,500.0,0.00013273,2]
[398493625,1765744644481,500.0,0.00013273,2]
[398493626,1765744649144,500.0,0.00013273,2]
[398493627,1765744649248,500.0,0.00013273,2]
[398493628,1765744649438,500.0,0.00013273,2]
[398493629,1765744652346,500.0,0.00013273,2]
[398493630,1765744679796,477.84,9.99e-05,2]
[398493631,1765744680163,477.84,9.99e-05,2]
[398493632,1765744686131,500.0,0.00013273,2]
[398493633,1765744686493,500.0,0.00013273,2]
[398493634,1765744687266,500.0,0.00013273,2]
[398493635,1765744690329,500.0,0.00013273,2]
[398493636,1765744692140,406.0321406,0.000134,2]
[398493637,1765744692166,9540.9678594,0.000134,2]
[398493638,1765744707364,150.0,9.119e-05,2]
[398493639,1765744707929,150.0,9.948e-05,2]
[398493640,1765744708423,150.0,0.00010777,2]
[398493641,1765744708775,9.0421406,0.00011606,2]
[398493642,1765744708811,159.9978594,0.00011606,2]
[398493643,1765744709355,211.3,0.00012435,2]
[398493644,1765744709589,253.56,0.00013264,2]
[398493645,1765744742702,186.33,0.00012,2]
[398493646,1765744742965,186.33,0.00013,2]
[398493647,1765744743689,500.0,0.00013273,2]
[398493648,1765744757613,500.0,0.00013273,2]
[398493649,1765744760519,168.17158996,0.00013273,2]
[398493650,1765744764332,500.0,0.00013273,2]
[398493651,1765744768783,500.0,0.00013273,2]
[398493652,1765744769288,500.0,0.00013273,2]
[398493653,1765744770071,500.0,0.00013273,2]
[398493654,1765744770235,500.0,0.00013273,2]
[398493655,1765744779555,150.0,9.158e-05,2]
[398493656,1765744779632,150.0,9.99e-05,2]